fUSD/lending_fUSD_20250629
["ID","MTS","AMOUNT","RATE_DAILY","PERIOD"]
[368485422,1751190681499,-961.28,0.00028219,3]
[368485423,1751190681512,-490.0,0.00028219,3]
[368485424,1751190681524,-1509.17,0.00028219,3]
[368485425,1751190681536,-2526.68,0.00028219,3]
[368485426,1751190681549,-490.0,0.00028219,3]
[368485427,1751190681561,-1923.32,0.00028219,3]
[368485428,1751190681574,-490.0,0.00028219,3]
[368485429,1751190681588,-1194.57,0.00028219,3]
[368485430,1751190681600,-830.46,0.00028219,3]
[368485431,1751190681613,-2090.18,0.00028219,3]
[368485432,1751190681626,-490.0,0.00028219,3]
[368485433,1751190681639,-1213.82,0.00028219,3]
[368485434,1751190681652,-1000.0,0.00028221,5]
[368485435,1751190681665,-1000.0,0.00028221,5]
[368485436,1751190681679,-433.65625289,0.00028221,5]
[368485437,1751190681692,-504.80387914,0.00028221,5]
[368485438,1751190681705,-1000.0,0.00028221,5]
[368485439,1751190681717,-1064.83885348,0.00028221,5]
[368485440,1751190681729,-1000.0,0.00028221,5]
[368485441,1751190681742,-1000.0,0.00028221,5]
[368485442,1751190681754,-503.85795876,0.00028221,5]
[368485443,1751190681767,-1000.0,0.00028221,5]
[368485444,1751190681779,-1000.0,0.00028221,5]
[368485445,1751190681791,-1000.0,0.00028221,5]
[368485446,1751190681804,-1000.0,0.00028221,5]
[368485447,1751190681816,-1000.0,0.00028221,5]
[368485448,1751190681828,-1000.0,0.00028221,5]
[368485449,1751190681841,-1000.0,0.00028221,5]
[368485450,1751190681853,-1049.27206376,0.00028221,5]
[368485451,1751190681866,-1000.0,0.00028221,5]
[368485452,1751190681878,-1000.0,0.00028221,5]
[368485453,1751190681891,-1052.40387305,0.00028221,5]
[368485454,1751190681904,-300.0,0.00028224,2]
[368485455,1751190681915,-1727.06481,0.0002823,2]
[368485456,1751190681928,-479.52259878,0.00028236,2]
[368485457,1751190681940,-627.73905261,0.00028248,5]
[368485458,1751190681953,-279.54814389,0.00028264,2]
[368485459,1751190681965,-371.85557959,0.00028271,2]
[368485460,1751190681978,-303.98420713,0.00028301,2]
[368485461,1751190681991,-2043.46130184,0.00028348,18]
[368485462,1751190682004,-203.4236134,0.00028373,2]
[368485463,1751190682016,-6683.3356399,0.00028373,2]
[368485464,1751190682028,-42402.7008614,0.00028373,2]
[368485465,1751190682042,-151.0,0.00028373,7]
[368485466,1751190682055,-5024.4776262,0.00028373,2]
[368485467,1751190682067,-2061.0077228,0.00028373,2]
[368485468,1751190682080,-8167.4697543,0.00028379,2]
[368485469,1751190682093,-171.92554654,0.00028381,2]
[368485470,1751190682106,-2110.0,0.00028381,2]
[368485471,1751190682119,-300.0,0.00028381,2]
[368485472,1751190682132,-307.44041539,0.00028399,10]
[368485473,1751190682143,-225723.09672011,0.000284,2]
[368485474,1751190682156,-150.0,0.00028424,2]
[368485475,1751190682168,-150.0,0.00028424,2]
[368485476,1751190682181,-3082.74424612,0.00028456,2]
[368485477,1751190682193,-150.0,0.00028465,2]
[368485478,1751190682205,-53888.0,0.00028466,2]
[368485479,1751190682218,-1504.33015774,0.00028468,5]
[368485480,1751190682231,-1500.0,0.00028468,2]
[368485481,1751190682243,-1500.0,0.00028468,5]
[368485482,1751190682255,-503.00611056,0.00028468,5]
[368485483,1751190682267,-1500.0,0.00028468,5]
[368485484,1751190682280,-479.52259878,0.00028471,2]
[368485485,1751190682292,-500.0,0.00028473,5]
[368485486,1751190682301,-2642.9558605,0.00028473,2]
[368485487,1751190682310,-1727.06481,0.0002848,2]
[368485488,1751190682319,-490.0,0.00028492,3]
[368485489,1751190682329,-590.68,0.00028492,3]
[368485490,1751190682341,-150.0,0.00028492,2]
[368485491,1751190682350,-150.0,0.00028492,2]
[368485492,1751190682825,-236723.30472079,0.00028493,4]
[368485493,1751190682854,-5627.53797645,0.00028493,4]
[368485494,1751190682868,-308.79996137,0.00028493,2]
[368485495,1751190682877,-200.0,0.00028493,3]
[368485496,1751190682886,-627.62092147,0.00028493,2]
[368485497,1751190682898,-211.08284886,0.00028493,3]
[368485498,1751190682907,-802.0,0.00028493,3]
[368485499,1751190682917,-201.27880672,0.00028493,3]
[368485500,1751190682926,-500.0,0.00028493,3]
[368485501,1751190682936,-500.0,0.00028493,3]
[368485502,1751190682946,-500.0,0.00028493,3]
[368485503,1751190682956,-202.32509076,0.00028493,3]
[368485504,1751190682966,-150.0,0.00028493,3]
[368485505,1751190682975,-500.0,0.00028493,3]
[368485506,1751190682984,-500.0,0.00028493,3]
[368485507,1751190682994,-453.0,0.00028493,3]
[368485508,1751190683005,-500.0,0.00028493,3]
[368485509,1751190683016,-600.46,0.00028493,3]
[368485510,1751190683026,-490.0,0.00028493,3]
[368485511,1751190683037,-490.0,0.00028493,3]
[368485512,1751190683046,-737.29,0.00028493,3]
[368485513,1751190683055,-737.29,0.00028493,3]
[368485514,1751190683064,-490.0,0.00028493,3]
[368485515,1751190683074,-490.0,0.00028493,3]
[368485516,1751190683083,-542.33,0.00028493,3]
[368485517,1751190683092,-490.0,0.00028493,3]
[368485518,1751190683103,-847.37,0.00028493,3]
[368485519,1751190683113,-490.0,0.00028493,3]
[368485520,1751190683122,-490.0,0.00028493,3]
[368485521,1751190683132,-490.0,0.00028493,3]
[368485522,1751190683141,-490.0,0.00028493,3]
[368485523,1751190683151,-236.11771924,0.00028493,3]
[368485524,1751190683160,-490.0,0.00028493,3]
[368485525,1751190683169,-490.0,0.00028493,3]
[368485526,1751190683179,-490.0,0.00028493,3]
[368485527,1751190683189,-320.65258278,0.00028493,3]
[368485528,1751190683198,-948.9,0.00028493,3]
[368485529,1751190683207,-667.1,0.00028493,3]
[368485530,1751190683216,-490.0,0.00028493,3]
[368485531,1751190683226,-513.09,0.00028493,3]
[368485532,1751190683235,-490.0,0.00028493,3]
[368485533,1751190683244,-490.0,0.00028493,3]
[368485534,1751190683254,-978.74,0.00028493,3]
[368485535,1751190683263,-642.29,0.00028493,3]
[368485536,1751190683273,-490.0,0.00028493,3]
[368485537,1751190683283,-490.0,0.00028493,3]
[368485538,1751190683293,-490.0,0.00028493,3]
[368485539,1751190683303,-1186.44,0.00028493,3]
[368485540,1751190683313,-490.0,0.00028493,3]
[368485541,1751190683322,-490.0,0.00028493,3]
[368485542,1751190683333,-490.0,0.00028493,3]
[368485543,1751190683343,-2554.302964,0.00028493,3]
[368485544,1751190683353,-853.16,0.00028493,3]
[368485545,1751190683363,-490.0,0.00028493,3]
[368485546,1751190683372,-490.0,0.00028493,3]
[368485547,1751190683383,-2816.157543,0.00028493,3]
[368485548,1751190683392,-490.0,0.00028493,3]
[368485549,1751190683401,-490.0,0.00028493,3]
[368485550,1751190683411,-490.0,0.00028493,3]
[368485551,1751190683420,-2200.380726,0.00028493,3]
[368485552,1751190683430,-490.0,0.00028493,3]
[368485553,1751190683439,-500.85,0.00028493,3]
[368485554,1751190683448,-151.959343,0.00028493,3]
[368485555,1751190683458,-392.680419,0.00028493,3]
[368485556,1751190683466,-490.0,0.00028493,3]
[368485557,1751190683476,-233.57941901,0.00028493,3]
[368485558,1751190683485,-490.0,0.00028493,3]
[368485559,1751190683494,-887.72,0.00028493,3]
[368485560,1751190683503,-490.0,0.00028493,3]
[368485561,1751190683512,-490.0,0.00028493,3]
[368485562,1751190683522,-153.102854,0.00028493,3]
[368485563,1751190683531,-656.47,0.00028493,3]
[368485564,1751190683540,-556.18,0.00028493,3]
[368485565,1751190683549,-571.97,0.00028493,3]
[368485566,1751190683559,-490.0,0.00028493,3]
[368485567,1751190683567,-858.42,0.00028493,3]
[368485568,1751190683577,-490.0,0.00028493,3]
[368485569,1751190683586,-648.74,0.00028493,3]
[368485570,1751190683595,-490.0,0.00028493,3]
[368485571,1751190683605,-1167.71,0.00028493,3]
[368485572,1751190683614,-490.0,0.00028493,3]
[368485573,1751190683623,-167.777922,0.00028493,3]
[368485574,1751190683633,-642.42,0.00028493,3]
[368485575,1751190683642,-490.0,0.00028493,3]
[368485576,1751190683651,-523.68,0.00028493,3]
[368485577,1751190683661,-490.0,0.00028493,3]
[368485578,1751190683670,-490.0,0.00028493,3]
[368485579,1751190683680,-490.0,0.00028493,3]
[368485580,1751190683689,-490.0,0.00028493,3]
[368485581,1751190683698,-490.0,0.00028493,3]
[368485582,1751190683707,-625.75,0.00028493,3]
[368485583,1751190683717,-490.0,0.00028493,3]
[368485584,1751190683726,-490.0,0.00028493,3]
[368485585,1751190683735,-490.0,0.00028493,3]
[368485586,1751190683744,-490.0,0.00028493,3]
[368485587,1751190683754,-490.0,0.00028493,3]
[368485588,1751190683764,-490.0,0.00028493,3]
[368485589,1751190683773,-490.0,0.00028493,3]
[368485590,1751190683784,-490.0,0.00028493,3]
[368485591,1751190683793,-1529.36,0.00028493,3]
[368485592,1751190683803,-490.0,0.00028493,3]
[368485593,1751190683815,-490.0,0.00028493,3]
[368485594,1751190683825,-490.0,0.00028493,3]
[368485595,1751190683835,-490.0,0.00028493,3]
[368485596,1751190683845,-619.47261088,0.00028493,3]
[368485597,1751190683855,-725.47,0.00028493,3]
[368485598,1751190683863,-167.777922,0.00028493,3]
[368485599,1751190683873,-471.55733114,0.00028493,3]
[368485600,1751190683882,-490.0,0.00028493,3]
[368485601,1751190683891,-490.0,0.00028493,3]
[368485602,1751190683901,-490.0,0.00028493,3]
[368485603,1751190683910,-490.0,0.00028493,3]
[368485604,1751190683919,-490.0,0.00028493,3]
[368485605,1751190683929,-490.0,0.00028493,3]
[368485606,1751190683939,-1837.93,0.00028493,3]
[368485607,1751190683949,-490.0,0.00028493,3]
[368485608,1751190683959,-490.0,0.00028493,3]
[368485609,1751190683968,-677.59,0.00028493,3]
[368485610,1751190683978,-961.81,0.00028493,3]
[368485611,1751190683987,-490.0,0.00028493,3]
[368485612,1751190683996,-490.0,0.00028493,3]
[368485613,1751190684006,-490.0,0.00028493,3]
[368485614,1751190684016,-811.6,0.00028493,3]
[368485615,1751190684025,-701.76,0.00028493,3]
[368485616,1751190684035,-490.0,0.00028493,3]
[368485617,1751190684044,-801.55,0.00028493,3]
[368485618,1751190684054,-490.0,0.00028493,3]
[368485619,1751190684063,-490.0,0.00028493,3]
[368485620,1751190684073,-493.56,0.00028493,3]
[368485621,1751190684082,-490.0,0.00028493,3]
[368485622,1751190684091,-490.0,0.00028493,3]
[368485623,1751190684100,-490.0,0.00028493,3]
[368485624,1751190684110,-490.0,0.00028493,3]
[368485625,1751190684119,-490.0,0.00028493,3]
[368485626,1751190684131,-490.0,0.00028493,3]
[368485627,1751190684141,-740.41,0.00028493,3]
[368485628,1751190684151,-930.82,0.00028493,3]
[368485629,1751190684160,-1134.82,0.00028493,3]
[368485630,1751190684170,-629.08,0.00028493,3]
[368485631,1751190684179,-507.56,0.00028493,3]
[368485632,1751190684188,-490.0,0.00028493,3]
[368485633,1751190684198,-490.0,0.00028493,3]
[368485634,1751190684207,-490.0,0.00028493,3]
[368485635,1751190684216,-508.09,0.00028493,3]
[368485636,1751190684225,-490.0,0.00028493,3]
[368485637,1751190684234,-1395.58,0.00028493,3]
[368485638,1751190684243,-596.83,0.00028493,3]
[368485639,1751190684253,-516.57,0.00028493,3]
[368485640,1751190684262,-440.89924401,0.00028493,3]
[368485641,1751190684271,-2015.14,0.00028493,3]
[368485642,1751190684280,-1527.96,0.00028493,3]
[368485643,1751190684289,-490.0,0.00028493,3]
[368485644,1751190684301,-490.0,0.00028493,3]
[368485645,1751190684310,-490.0,0.00028493,3]
[368485646,1751190684320,-615.0,0.00028493,3]
[368485647,1751190684333,-490.0,0.00028493,3]
[368485648,1751190684344,-490.0,0.00028493,3]
[368485649,1751190684353,-490.0,0.00028493,3]
[368485650,1751190684363,-889.47,0.00028493,3]
[368485651,1751190684372,-490.0,0.00028493,3]
[368485652,1751190684383,-2302.9,0.00028493,3]
[368485653,1751190684393,-490.0,0.00028493,3]
[368485654,1751190684402,-282.58729869,0.00028493,3]
[368485655,1751190684411,-636.04178931,0.00028493,3]
[368485656,1751190684421,-299.18523351,0.00028493,3]
[368485657,1751190684430,-490.0,0.00028493,3]
[368485658,1751190684439,-490.0,0.00028493,3]
[368485659,1751190684449,-743.01,0.00028493,3]
[368485660,1751190684459,-490.0,0.00028493,3]
[368485661,1751190684469,-945.27,0.00028493,3]
[368485662,1751190684478,-643.27,0.00028493,3]
[368485663,1751190684488,-1940.61,0.00028493,3]
[368485664,1751190684499,-490.0,0.00028493,3]
[368485665,1751190684508,-1952.95,0.00028493,3]
[368485666,1751190684517,-1201.96,0.00028493,3]
[368485667,1751190684528,-1310.06,0.00028493,3]
[368485668,1751190684536,-490.0,0.00028493,3]
[368485669,1751190684546,-369.84,0.00028493,3]
[368485670,1751190684555,-490.0,0.00028493,3]
[368485671,1751190684564,-1125.22,0.00028493,3]
[368485672,1751190684574,-1224.35,0.00028493,3]
[368485673,1751190684584,-490.0,0.00028493,3]
[368485674,1751190684594,-976.06,0.00028493,3]
[368485675,1751190684604,-728.8,0.00028493,3]
[368485676,1751190684614,-749.58,0.00028493,3]
[368485677,1751190684624,-957.88,0.00028493,3]
[368485678,1751190684634,-1824.88,0.00028493,3]
[368485679,1751190684643,-490.0,0.00028493,3]
[368485680,1751190684652,-603.75,0.00028493,3]
[368485681,1751190684662,-490.0,0.00028493,3]
[368485682,1751190684671,-490.0,0.00028493,3]
[368485683,1751190684681,-490.0,0.00028493,3]
[368485684,1751190684690,-490.0,0.00028493,3]
[368485685,1751190684700,-538.77,0.00028493,3]
[368485686,1751190684709,-776.78,0.00028493,3]
[368485687,1751190684719,-960.82,0.00028493,3]
[368485688,1751190684728,-894.84,0.00028493,3]
[368485689,1751190684738,-490.0,0.00028493,3]
[368485690,1751190684747,-490.0,0.00028493,3]
[368485691,1751190684757,-490.0,0.00028493,3]
[368485692,1751190684767,-1904.77,0.00028493,3]
[368485693,1751190684778,-490.0,0.00028493,3]
[368485694,1751190684787,-490.0,0.00028493,3]
[368485695,1751190684797,-490.0,0.00028493,3]
[368485696,1751190684806,-1462.39,0.00028493,3]
[368485697,1751190684815,-2300.89,0.00028493,3]
[368485698,1751190684825,-490.0,0.00028493,3]
[368485699,1751190684836,-694.52,0.00028493,3]
[368485700,1751190684846,-650.78,0.00028493,3]
[368485701,1751190684855,-490.0,0.00028493,3]
[368485702,1751190684865,-490.0,0.00028493,3]
[368485703,1751190684875,-2228.41,0.00028493,3]
[368485704,1751190684885,-490.0,0.00028493,3]
[368485705,1751190684896,-1649.19,0.00028493,3]
[368485706,1751190684906,-440.15052957,0.00028493,3]
[368485707,1751190684916,-490.0,0.00028493,3]
[368485708,1751190684927,-2026.94,0.00028493,3]
[368485709,1751190684937,-490.0,0.00028493,3]
[368485710,1751190684948,-843.7,0.00028493,3]
[368485711,1751190684958,-490.0,0.00028493,3]
[368485712,1751190684967,-490.0,0.00028493,3]
[368485713,1751190684977,-490.0,0.00028493,3]
[368485714,1751190684988,-435.72604138,0.00028493,3]
[368485715,1751190684998,-490.0,0.00028493,3]
[368485716,1751190685008,-490.0,0.00028493,3]
[368485717,1751190685018,-490.0,0.00028493,3]
[368485718,1751190685029,-571.61,0.00028493,3]
[368485719,1751190685039,-1147.84,0.00028493,3]
[368485720,1751190685052,-490.0,0.00028493,3]
[368485721,1751190685062,-1556.08,0.00028493,3]
[368485722,1751190685071,-490.0,0.00028493,3]
[368485723,1751190685081,-896.97,0.00028493,3]
[368485724,1751190685091,-490.0,0.00028493,3]
[368485725,1751190685100,-594.67,0.00028493,3]
[368485726,1751190685111,-490.0,0.00028493,3]
[368485727,1751190685120,-1027.62,0.00028493,3]
[368485728,1751190685130,-707.16,0.00028493,3]
[368485729,1751190685140,-500.0,0.00028493,3]
[368485730,1751190685150,-792.35,0.00028493,3]
[368485731,1751190685159,-490.0,0.00028493,3]
[368485732,1751190685169,-880.72,0.00028493,3]
[368485733,1751190685179,-490.0,0.00028493,3]
[368485734,1751190685189,-490.0,0.00028493,3]
[368485735,1751190685199,-490.0,0.00028493,3]
[368485736,1751190685209,-490.0,0.00028493,3]
[368485737,1751190685218,-780.47,0.00028493,3]
[368485738,1751190685228,-490.0,0.00028493,3]
[368485739,1751190685237,-560.33,0.00028493,3]
[368485740,1751190685247,-525.19,0.00028493,3]
[368485741,1751190685257,-944.59,0.00028493,3]
[368485742,1751190685267,-490.0,0.00028493,3]
[368485743,1751190685276,-1653.81,0.00028493,3]
[368485744,1751190685286,-490.0,0.00028493,3]
[368485745,1751190685296,-1620.77,0.00028493,3]
[368485746,1751190685306,-1900.77,0.00028493,3]
[368485747,1751190685315,-490.0,0.00028493,3]
[368485748,1751190685326,-490.0,0.00028493,3]
[368485749,1751190685339,-490.0,0.00028493,3]
[368485750,1751190685350,-521.24,0.00028493,3]
[368485751,1751190685359,-1487.61,0.00028493,3]
[368485752,1751190685369,-1556.78,0.00028493,3]
[368485753,1751190685380,-333.88323679,0.00028493,3]
[368485754,1751190685390,-1633.03,0.00028493,3]
[368485755,1751190685399,-1046.71,0.00028493,3]
[368485756,1751190685410,-490.0,0.00028493,3]
[368485757,1751190685419,-506.3,0.00028493,3]
[368485758,1751190685430,-1936.24,0.00028493,3]
[368485759,1751190685440,-514.5,0.00028493,3]
[368485760,1751190685450,-490.0,0.00028493,3]
[368485761,1751190685459,-490.0,0.00028493,3]
[368485762,1751190685469,-2262.43,0.00028493,3]
[368485763,1751190685478,-665.95,0.00028493,3]
[368485764,1751190685488,-2474.6,0.00028493,3]
[368485765,1751190685498,-689.16,0.00028493,3]
[368485766,1751190685508,-1268.88,0.00028493,3]
[368485767,1751190685518,-490.0,0.00028493,3]
[368485768,1751190685528,-490.0,0.00028493,3]
[368485769,1751190685538,-307.08472302,0.00028493,3]
[368485770,1751190685547,-858.86,0.00028493,3]
[368485771,1751190685557,-1400.07,0.00028493,3]
[368485772,1751190685567,-490.0,0.00028493,3]
[368485773,1751190685576,-490.0,0.00028493,3]
[368485774,1751190685586,-730.59,0.00028493,3]
[368485775,1751190685595,-666.33,0.00028493,3]
[368485776,1751190685604,-1700.28,0.00028493,3]
[368485777,1751190685614,-818.45,0.00028493,3]
[368485778,1751190685623,-709.17,0.00028493,3]
[368485779,1751190685632,-1024.15,0.00028493,3]
[368485780,1751190685642,-490.0,0.00028493,3]
[368485781,1751190685651,-2038.87,0.00028493,3]
[368485782,1751190685660,-1027.52,0.00028493,3]
[368485783,1751190685669,-490.0,0.00028493,3]
[368485784,1751190685678,-534.02,0.00028493,3]
[368485785,1751190685687,-2394.84,0.00028493,3]
[368485786,1751190685696,-490.0,0.00028493,3]
[368485787,1751190685705,-1561.51,0.00028493,3]
[368485788,1751190685714,-490.0,0.00028493,3]
[368485789,1751190685723,-490.0,0.00028493,3]
[368485790,1751190685732,-490.0,0.00028493,3]
[368485791,1751190685741,-1167.05,0.00028493,3]
[368485792,1751190685749,-899.19,0.00028493,3]
[368485793,1751190685759,-935.31,0.00028493,3]
[368485794,1751190685768,-771.06,0.00028493,3]
[368485795,1751190685778,-490.0,0.00028493,3]
[368485796,1751190685787,-490.0,0.00028493,3]
[368485797,1751190685797,-610.33,0.00028493,3]
[368485798,1751190685806,-715.86,0.00028493,3]
[368485799,1751190685816,-1503.84,0.00028493,3]
[368485800,1751190685826,-490.0,0.00028493,3]
[368485801,1751190686022,-1626.28,0.00028493,3]
[368485802,1751190686066,-566.4,0.00028493,3]
[368485803,1751190686076,-934.93,0.00028493,3]
[368485804,1751190686086,-490.0,0.00028493,3]
[368485805,1751190686096,-516.29,0.00028493,3]
[368485806,1751190686106,-589.35,0.00028493,3]
[368485807,1751190686115,-2211.02,0.00028493,3]
[368485808,1751190686125,-1313.26,0.00028493,3]
[368485809,1751190686135,-878.98,0.00028493,3]
[368485810,1751190686145,-2018.3,0.00028493,3]
[368485811,1751190686154,-490.0,0.00028493,3]
[368485812,1751190686164,-490.0,0.00028493,3]
[368485813,1751190686174,-1320.46,0.00028493,3]
[368485814,1751190686184,-490.0,0.00028493,3]
[368485815,1751190686194,-1272.1,0.00028493,3]
[368485816,1751190686204,-2254.95,0.00028493,3]
[368485817,1751190686213,-490.0,0.00028493,3]
[368485818,1751190686223,-490.0,0.00028493,3]
[368485819,1751190686232,-394.10871575,0.00028493,3]
[368485820,1751190686241,-490.0,0.00028493,3]
[368485821,1751190686251,-801.49,0.00028493,3]
[368485822,1751190686260,-793.92,0.00028493,3]
[368485823,1751190686270,-1409.04,0.00028493,3]
[368485824,1751190686279,-566.98,0.00028493,3]
[368485825,1751190686289,-855.39,0.00028493,3]
[368485826,1751190686298,-520.23,0.00028493,3]
[368485827,1751190686309,-1383.19,0.00028493,3]
[368485828,1751190686318,-503.31,0.00028493,3]
[368485829,1751190686328,-490.0,0.00028493,3]
[368485830,1751190686342,-490.0,0.00028493,3]
[368485831,1751190686352,-490.0,0.00028493,3]
[368485832,1751190686362,-1411.93,0.00028493,3]
[368485833,1751190686372,-490.0,0.00028493,3]
[368485834,1751190686382,-907.17,0.00028493,3]
[368485835,1751190686392,-1733.55,0.00028493,3]
[368485836,1751190686401,-490.0,0.00028493,3]
[368485837,1751190686411,-1161.29,0.00028493,3]
[368485838,1751190686422,-490.0,0.00028493,3]
[368485839,1751190686433,-490.0,0.00028493,3]
[368485840,1751190686442,-490.0,0.00028493,3]
[368485841,1751190686452,-490.0,0.00028493,3]
[368485842,1751190686462,-490.0,0.00028493,3]
[368485843,1751190686471,-648.19,0.00028493,3]
[368485844,1751190686480,-492.59,0.00028493,3]
[368485845,1751190686489,-664.2,0.00028493,3]
[368485846,1751190686499,-1411.98,0.00028493,3]
[368485847,1751190686509,-490.0,0.00028493,3]
[368485848,1751190686518,-1476.05,0.00028493,3]
[368485849,1751190686527,-490.0,0.00028493,3]
[368485850,1751190686536,-490.0,0.00028493,3]
[368485851,1751190686545,-490.0,0.00028493,3]
[368485852,1751190686555,-490.0,0.00028493,3]
[368485853,1751190686564,-490.0,0.00028493,3]
[368485854,1751190686573,-2483.68,0.00028493,3]
[368485855,1751190686583,-1539.15,0.00028493,3]
[368485856,1751190686592,-490.0,0.00028493,3]
[368485857,1751190686601,-622.78,0.00028493,3]
[368485858,1751190686610,-2320.44,0.00028493,3]
[368485859,1751190686619,-490.0,0.00028493,3]
[368485860,1751190686628,-894.95,0.00028493,3]
[368485861,1751190686638,-455.02292619,0.00028493,3]
[368485862,1751190686647,-701.41,0.00028493,3]
[368485863,1751190686657,-1005.08,0.00028493,3]
[368485864,1751190686666,-526.1,0.00028493,3]
[368485865,1751190686675,-490.0,0.00028493,3]
[368485866,1751190686687,-1032.78,0.00028493,3]
[368485867,1751190686696,-490.0,0.00028493,3]
[368485868,1751190686706,-1199.97,0.00028493,3]
[368485869,1751190686715,-1283.76,0.00028493,3]
[368485870,1751190686725,-549.61,0.00028493,3]
[368485871,1751190686735,-490.0,0.00028493,3]
[368485872,1751190686744,-490.0,0.00028493,3]
[368485873,1751190686753,-901.15,0.00028493,3]
[368485874,1751190686763,-545.6,0.00028493,3]
[368485875,1751190686773,-841.45,0.00028493,3]
[368485876,1751190686783,-1956.7,0.00028493,3]
[368485877,1751190686793,-525.0,0.00028493,3]
[368485878,1751190686803,-908.9,0.00028493,3]
[368485879,1751190686812,-618.51096999,0.00028493,3]
[368485880,1751190686823,-490.0,0.00028493,3]
[368485881,1751190686833,-1559.17,0.00028493,3]
[368485882,1751190686842,-490.0,0.00028493,3]
[368485883,1751190686854,-772.36,0.00028493,3]
[368485884,1751190686863,-1731.31,0.00028493,3]
[368485885,1751190686873,-490.0,0.00028493,3]
[368485886,1751190686882,-1241.41,0.00028493,3]
[368485887,1751190686892,-490.0,0.00028493,3]
[368485888,1751190686901,-2257.75,0.00028493,3]
[368485889,1751190686911,-1736.54,0.00028493,3]
[368485890,1751190686920,-2325.03,0.00028493,3]
[368485891,1751190686930,-613.43,0.00028493,3]
[368485892,1751190686940,-490.0,0.00028493,3]
[368485893,1751190686949,-1117.78,0.00028493,3]
[368485894,1751190686959,-1022.6,0.00028493,3]
[368485895,1751190686969,-896.69,0.00028493,3]
[368485896,1751190686979,-490.0,0.00028493,3]
[368485897,1751190686989,-998.0,0.00028493,3]
[368485898,1751190686998,-490.0,0.00028493,3]
[368485899,1751190687007,-490.0,0.00028493,3]
[368485900,1751190687017,-490.0,0.00028493,3]
[368485901,1751190687026,-1382.19,0.00028493,3]
[368485902,1751190687036,-490.0,0.00028493,3]
[368485903,1751190687046,-1087.69,0.00028493,3]
[368485904,1751190687057,-490.0,0.00028493,3]
[368485905,1751190687067,-937.32,0.00028493,3]
[368485906,1751190687076,-490.0,0.00028493,3]
[368485907,1751190687086,-490.0,0.00028493,3]
[368485908,1751190687096,-490.0,0.00028493,3]
[368485909,1751190687107,-490.0,0.00028493,3]
[368485910,1751190687116,-490.0,0.00028493,3]
[368485911,1751190687126,-2003.29,0.00028493,3]
[368485912,1751190687135,-1073.82,0.00028493,3]
[368485913,1751190687144,-1428.66,0.00028493,3]
[368485914,1751190687154,-490.0,0.00028493,3]
[368485915,1751190687163,-906.56,0.00028493,3]
[368485916,1751190687173,-490.0,0.00028493,3]
[368485917,1751190687184,-751.94,0.00028493,3]
[368485918,1751190687193,-1284.2,0.00028493,3]
[368485919,1751190687203,-995.73,0.00028493,3]
[368485920,1751190687212,-730.89,0.00028493,3]
[368485921,1751190687221,-490.0,0.00028493,3]